[Event "Titled Tuesday Blitz August 16 Early 2022"]
[White "Tica, Sven"]
[Black "Omariev, Maksim"]
[WhiteFideId "14526948"]
[BlackFideId "4193423"]
[WhiteElo "2350"]
[BlackElo "2304"]
[Result "1-0"]
[Round "07"]
[TimeControl "180+2"]
[Date "2022.08.18"]
[WhiteClock "0:00:00"]
[BlackClock "0:00:00"]

1. e4 {[%clk 0:00:00]}  c5 {[%clk 0:00:00]} 2. Nc3 {[%clk 0:00:00]}  d6 {[%clk 0:00:00]} 3. f4 {[%clk 0:00:00]}  Nc6 {[%clk 0:00:00]} 4. Nf3 {[%clk 0:00:00]}  g6 {[%clk 0:00:00]} 5. Bc4 {[%clk 0:00:00]}  Bg7 {[%clk 0:00:00]} 6. d3 {[%clk 0:00:00]}  e6 {[%clk 0:00:00]} 7. O-O {[%clk 0:00:00]}  Nge7 {[%clk 0:00:00]} 8. f5 {[%clk 0:00:00]}  gxf5 {[%clk 0:00:00]} 9. Bg5 {[%clk 0:00:00]}  Qd7 {[%clk 0:00:00]} 10. Qe1 {[%clk 0:00:00]}  h6 {[%clk 0:00:00]} 11. Be3 {[%clk 0:00:00]}  d5 {[%clk 0:00:00]} 12. exd5 {[%clk 0:00:00]}  exd5 {[%clk 0:00:00]} 13. Nxd5 {[%clk 0:00:00]}  Nxd5 {[%clk 0:00:00]} 14. Bxd5 {[%clk 0:00:00]}  Qxd5 {[%clk 0:00:00]} 15. Bxh6+ {[%clk 0:00:00]}  Kf8 {[%clk 0:00:00]} 16. Bxg7+ {[%clk 0:00:00]}  Kxg7 {[%clk 0:00:00]} 17. Qg3+ {[%clk 0:00:00]}  Kf8 {[%clk 0:00:00]} 18. Rae1 {[%clk 0:00:00]}  Be6 {[%clk 0:00:00]} 19. Ng5 {[%clk 0:00:00]}  Re8 {[%clk 0:00:00]} 20. Qc7 {[%clk 0:00:00]}  Qd4+ {[%clk 0:00:00]} 21. Kh1 {[%clk 0:00:00]}  Qh4 {[%clk 0:00:00]} 22. Rxe6 {[%clk 0:00:00]}  Qxg5 {[%clk 0:00:00]} 23. Rxe8+ {[%clk 0:00:00]}  Kxe8 {[%clk 0:00:00]} 24. Qxb7 {[%clk 0:00:00]}  Qf6 {[%clk 0:00:00]} 25. Qc8+ {[%clk 0:00:00]}  Nd8 {[%clk 0:00:00]} 26. Qxc5 {[%clk 0:00:00]}  Ne6 {[%clk 0:00:00]} 27. Qc8+ {[%clk 0:00:00]}  Ke7 {[%clk 0:00:00]} 28. Qb7+ {[%clk 0:00:00]}  Kf8 {[%clk 0:00:00]} 29. Qb8+ {[%clk 0:00:00]}  Kg7 {[%clk 0:00:00]} 30. Qg3+ {[%clk 0:00:00]}  Kf8 {[%clk 0:00:00]} 31. h3 {[%clk 0:00:00]}  f4 {[%clk 0:00:00]} 32. Qf3 {[%clk 0:00:00]}  Qxb2 {[%clk 0:00:00]} 33. Re1 {[%clk 0:00:00]}  Qxa2 {[%clk 0:00:00]} 34. c3 {[%clk 0:00:00]}  Qd2 {[%clk 0:00:00]} 35. Ra1 {[%clk 0:00:00]}  Qxc3 {[%clk 0:00:00]} 36. Rxa7 {[%clk 0:00:00]}  Qe1+ {[%clk 0:00:00]} 37. Kh2 {[%clk 0:00:00]}  Qg3+ {[%clk 0:00:00]} 38. Qxg3 {[%clk 0:00:00]}  fxg3+ {[%clk 0:00:00]} 39. Kxg3 {[%clk 0:00:00]}  Rh5 {[%clk 0:00:00]} 40. h4 {[%clk 0:00:00]}  Rd5 {[%clk 0:00:00]} 41. Kh3 {[%clk 0:00:00]}  Rxd3+ {[%clk 0:00:00]} 42. g3 {[%clk 0:00:00]}  Kg7 {[%clk 0:00:00]} 43. Kg4 {[%clk 0:00:00]}  Rd4+ {[%clk 0:00:00]} 44. Kf5 {[%clk 0:00:00]}  Rd3 {[%clk 0:00:00]} 45. Kg4 {[%clk 0:00:00]}  Nd4 {[%clk 0:00:00]} 46. Rd7 {[%clk 0:00:00]}  Kg6 {[%clk 0:00:00]} 47. h5+ {[%clk 0:00:00]}  Kg7 {[%clk 0:00:00]} 48. Rd5 {[%clk 0:00:00]} 1-0


[Site "https://www.chess.com"]

[Event "Titled Tuesday Blitz August 16 Early 2022"]
[White "Timofeev, Artyom"]
[Black "Dubov, Daniil"]
[WhiteFideId "4140419"]
[BlackFideId "24126055"]
[WhiteElo "2578"]
[BlackElo "2791"]
[Result "1-0"]
[Round "07"]
[TimeControl "180+1"]
[Date "2022.08.16"]
[WhiteClock "0:00:10"]
[BlackClock "0:00:04"]

1. e4 {[%clk 0:02:55]}  c6 {[%clk 0:03:00]} 2. Nf3 {[%clk 0:02:54]}  d5 {[%clk 0:03:01]} 3. d3 {[%clk 0:02:53]}  Qc7 {[%clk 0:02:54]} 4. Nc3 {[%clk 0:02:51]}  dxe4 {[%clk 0:02:40]} 5. dxe4 {[%clk 0:02:50]}  e5 {[%clk 0:02:40]} 6. Bc4 {[%clk 0:02:50]}  b5 {[%clk 0:02:39]} 7. Bb3 {[%clk 0:02:50]}  Bc5 {[%clk 0:02:34]} 8. Ng5 {[%clk 0:02:38]}  Nh6 {[%clk 0:02:32]} 9. h3 {[%clk 0:02:35]}  a5 {[%clk 0:02:24]} 10. a3 {[%clk 0:02:30]}  Ba6 {[%clk 0:02:15]} 11. O-O {[%clk 0:02:28]}  b4 {[%clk 0:02:08]} 12. axb4 {[%clk 0:02:27]}  axb4 {[%clk 0:02:08]} 13. Nb1 {[%clk 0:02:14]}  O-O {[%clk 0:02:01]} 14. Ra2 {[%clk 0:02:01]}  Qb6 {[%clk 0:01:41]} 15. Qf3 {[%clk 0:01:54]}  Bxf1 {[%clk 0:01:26]} 16. Rxa8 {[%clk 0:01:53]}  Ba6 {[%clk 0:01:26]} 17. Be3 {[%clk 0:01:41]}  Bxe3 {[%clk 0:00:56]} 18. Qxe3 {[%clk 0:01:40]}  c5 {[%clk 0:00:48]} 19. Nd2 {[%clk 0:01:36]}  Bb7 {[%clk 0:00:20]} 20. Nc4 {[%clk 0:01:23]}  Qc7 {[%clk 0:00:20]} 21. Ra5 {[%clk 0:01:22]}  Nd7 {[%clk 0:00:20]} 22. Ra1 {[%clk 0:01:15]}  Kh8 {[%clk 0:00:18]} 23. Rd1 {[%clk 0:01:13]}  Ba6 {[%clk 0:00:14]} 24. Qd2 {[%clk 0:00:58]}  Nb6 {[%clk 0:00:06]} 25. Nxb6 {[%clk 0:00:50]}  Qxb6 {[%clk 0:00:07]} 26. Qd6 {[%clk 0:00:50]}  Qxd6 {[%clk 0:00:07]} 27. Rxd6 {[%clk 0:00:50]}  c4 {[%clk 0:00:08]} 28. Rxa6 {[%clk 0:00:46]}  cxb3 {[%clk 0:00:08]} 29. cxb3 {[%clk 0:00:47]}  Rc8 {[%clk 0:00:07]} 30. Rb6 {[%clk 0:00:41]}  f6 {[%clk 0:00:07]} 31. Ne6 {[%clk 0:00:40]}  Rc1+ {[%clk 0:00:07]} 32. Kh2 {[%clk 0:00:39]}  Rc2 {[%clk 0:00:08]} 33. Rb8+ {[%clk 0:00:33]}  Ng8 {[%clk 0:00:08]} 34. Kg3 {[%clk 0:00:32]}  Rxb2 {[%clk 0:00:07]} 35. Rxb4 {[%clk 0:00:32]}  h5 {[%clk 0:00:07]} 36. Rb7 {[%clk 0:00:29]}  Nh6 {[%clk 0:00:03]} 37. Nxg7 {[%clk 0:00:21]}  h4+ {[%clk 0:00:03]} 38. Kf3 {[%clk 0:00:21]}  Rc2 {[%clk 0:00:04]} 39. Nh5 {[%clk 0:00:17]}  Rc3+ {[%clk 0:00:04]} 40. Ke2 {[%clk 0:00:17]}  Ng8 {[%clk 0:00:05]} 41. Kd2 {[%clk 0:00:13]}  Rc6 {[%clk 0:00:04]} 42. b4 {[%clk 0:00:13]}  Rc4 {[%clk 0:00:05]} 43. f3 {[%clk 0:00:12]}  Rd4+ {[%clk 0:00:05]} 44. Kc3 {[%clk 0:00:12]}  Rd1 {[%clk 0:00:05]} 45. b5 {[%clk 0:00:12]}  Rc1+ {[%clk 0:00:02]} 46. Kb4 {[%clk 0:00:12]}  Rb1+ {[%clk 0:00:03]} 47. Kc5 {[%clk 0:00:12]}  Rc1+ {[%clk 0:00:03]} 48. Kd5 {[%clk 0:00:13]}  Rd1+ {[%clk 0:00:03]} 49. Ke6 {[%clk 0:00:13]}  Rd2 {[%clk 0:00:03]} 50. b6 {[%clk 0:00:12]}  Rxg2 {[%clk 0:00:03]} 51. Rc7 {[%clk 0:00:12]}  Rg5 {[%clk 0:00:03]} 52. b7 {[%clk 0:00:11]}  Rxh5 {[%clk 0:00:04]} 53. b8=Q {[%clk 0:00:11]}  Rg5 {[%clk 0:00:05]} 54. Qf8 {[%clk 0:00:11]}  Rg3 {[%clk 0:00:04]} 55. Qf7 {[%clk 0:00:10]} 1-0


[Site "https://www.chess.com"]

[Event "Titled Tuesday Blitz August 16 Early 2022"]
[White "Turzo, Attila"]
[Black "Pinheiro, Iung Alicio de O."]
[WhiteFideId "704954"]
[BlackFideId "2104350"]
[WhiteElo "2298"]
[BlackElo "2283"]
[Result "0-1"]
[Round "07"]
[TimeControl "180+2"]
[Date "2022.08.18"]
[WhiteClock "0:00:00"]
[BlackClock "0:00:00"]

1. e4 {[%clk 0:00:00]}  c5 {[%clk 0:00:00]} 2. Nf3 {[%clk 0:00:00]}  Nc6 {[%clk 0:00:00]} 3. Bb5 {[%clk 0:00:00]}  e6 {[%clk 0:00:00]} 4. O-O {[%clk 0:00:00]}  Nge7 {[%clk 0:00:00]} 5. d4 {[%clk 0:00:00]}  cxd4 {[%clk 0:00:00]} 6. Nxd4 {[%clk 0:00:00]}  Qb6 {[%clk 0:00:00]} 7. Nxc6 {[%clk 0:00:00]}  bxc6 {[%clk 0:00:00]} 8. Bd3 {[%clk 0:00:00]}  e5 {[%clk 0:00:00]} 9. c4 {[%clk 0:00:00]}  Ng6 {[%clk 0:00:00]} 10. Nc3 {[%clk 0:00:00]}  Qc7 {[%clk 0:00:00]} 11. Be3 {[%clk 0:00:00]}  Rb8 {[%clk 0:00:00]} 12. Rb1 {[%clk 0:00:00]}  a5 {[%clk 0:00:00]} 13. b3 {[%clk 0:00:00]}  Be7 {[%clk 0:00:00]} 14. c5 {[%clk 0:00:00]}  O-O {[%clk 0:00:00]} 15. a3 {[%clk 0:00:00]}  d6 {[%clk 0:00:00]} 16. b4 {[%clk 0:00:00]}  dxc5 {[%clk 0:00:00]} 17. bxc5 {[%clk 0:00:00]}  Be6 {[%clk 0:00:00]} 18. Qa4 {[%clk 0:00:00]}  Nf4 {[%clk 0:00:00]} 19. Bc4 {[%clk 0:00:00]}  Bg4 {[%clk 0:00:00]} 20. f3 {[%clk 0:00:00]}  Be6 {[%clk 0:00:00]} 21. Rb6 {[%clk 0:00:00]}  Rbd8 {[%clk 0:00:00]} 22. Rxc6 {[%clk 0:00:00]}  Qb7 {[%clk 0:00:00]} 23. Rb1 {[%clk 0:00:00]}  Qa8 {[%clk 0:00:00]} 24. Bxe6 {[%clk 0:00:00]}  Nxe6 {[%clk 0:00:00]} 25. Nd5 {[%clk 0:00:00]}  Rfe8 {[%clk 0:00:00]} 26. Rxe6 {[%clk 0:00:00]}  fxe6 {[%clk 0:00:00]} 27. Nc7 {[%clk 0:00:00]}  Qc8 {[%clk 0:00:00]} 28. Nxe8 {[%clk 0:00:00]}  Rxe8 {[%clk 0:00:00]} 29. Qxa5 {[%clk 0:00:00]}  Rd8 {[%clk 0:00:00]} 30. Qa7 {[%clk 0:00:00]}  Bf8 {[%clk 0:00:00]} 31. a4 {[%clk 0:00:00]}  Rd3 {[%clk 0:00:00]} 32. Bf2 {[%clk 0:00:00]}  Qd8 {[%clk 0:00:00]} 33. Qb6 {[%clk 0:00:00]}  Rd1+ {[%clk 0:00:00]} 34. Be1 {[%clk 0:00:00]}  Qd4+ {[%clk 0:00:00]} 35. Kh1 {[%clk 0:00:00]}  Qd3 {[%clk 0:00:00]} 36. h3 {[%clk 0:00:00]}  Rxb1 {[%clk 0:00:00]} 37. Qxe6+ {[%clk 0:00:00]}  Kh8 {[%clk 0:00:00]} 38. Qf7 {[%clk 0:00:00]}  Rxe1+ {[%clk 0:00:00]} 39. Kh2 {[%clk 0:00:00]}  Qd8 {[%clk 0:00:00]} 40. c6 {[%clk 0:00:00]}  Qf6 {[%clk 0:00:00]} 41. Qxf6 {[%clk 0:00:00]}  gxf6 {[%clk 0:00:00]} 42. a5 {[%clk 0:00:00]}  Rc1 {[%clk 0:00:00]} 43. a6 {[%clk 0:00:00]}  Rxc6 {[%clk 0:00:00]} 44. a7 {[%clk 0:00:00]}  Ra6 {[%clk 0:00:00]} 45. a8=Q {[%clk 0:00:00]}  Rxa8 {[%clk 0:00:00]} 0-1


[Site "https://www.chess.com"]

[Event "Titled Tuesday Blitz August 16 Early 2022"]
[White "Vakhlamov, Igor L."]
[Black "Aldokhin, Ivan"]
[WhiteFideId "24126748"]
[BlackFideId "24115720"]
[WhiteElo "2401"]
[BlackElo "2246"]
[Result "1-0"]
[Round "07"]
[TimeControl "180+1"]
[Date "2022.08.16"]
[WhiteClock "0:00:12"]
[BlackClock "0:00:05"]

1. e4 {[%clk 0:03:00]}  c5 {[%clk 0:03:00]} 2. Nf3 {[%clk 0:03:00]}  e6 {[%clk 0:03:00]} 3. Nc3 {[%clk 0:03:00]}  a6 {[%clk 0:03:00]} 4. d4 {[%clk 0:03:00]}  cxd4 {[%clk 0:03:00]} 5. Qxd4 {[%clk 0:03:01]}  Nc6 {[%clk 0:03:00]} 6. Qe3 {[%clk 0:03:00]}  Bb4 {[%clk 0:02:23]} 7. Bd2 {[%clk 0:02:55]}  Nge7 {[%clk 0:02:23]} 8. a3 {[%clk 0:02:49]}  Ba5 {[%clk 0:02:21]} 9. Bd3 {[%clk 0:02:44]}  d5 {[%clk 0:02:17]} 10. exd5 {[%clk 0:02:39]}  exd5 {[%clk 0:02:10]} 11. Qg5 {[%clk 0:02:36]}  O-O {[%clk 0:02:07]} 12. O-O {[%clk 0:02:05]}  d4 {[%clk 0:01:57]} 13. Qh5 {[%clk 0:01:43]}  h6 {[%clk 0:01:16]} 14. Bxh6 {[%clk 0:01:00]}  gxh6 {[%clk 0:01:10]} 15. Qxh6 {[%clk 0:01:01]}  Nf5 {[%clk 0:01:02]} 16. Qh5 {[%clk 0:00:49]}  Qf6 {[%clk 0:00:54]} 17. Nd5 {[%clk 0:00:41]}  Qg6 {[%clk 0:00:50]} 18. Qh3 {[%clk 0:00:33]}  Nfe7 {[%clk 0:00:35]} 19. Nxe7+ {[%clk 0:00:30]}  Nxe7 {[%clk 0:00:33]} 20. Qh4 {[%clk 0:00:26]}  Nf5 {[%clk 0:00:28]} 21. Qf4 {[%clk 0:00:26]}  Qh6 {[%clk 0:00:19]} 22. Qe5 {[%clk 0:00:26]}  Qg7 {[%clk 0:00:05]} 23. Qxa5 {[%clk 0:00:23]}  Nh6 {[%clk 0:00:02]} 24. Rfe1 {[%clk 0:00:20]}  Bh3 {[%clk 0:00:02]} 25. Qg5 {[%clk 0:00:15]}  Bg4 {[%clk 0:00:02]} 26. Qxg7+ {[%clk 0:00:14]}  Kxg7 {[%clk 0:00:02]} 27. Nxd4 {[%clk 0:00:15]}  Kf6 {[%clk 0:00:03]} 28. Nb3 {[%clk 0:00:16]}  Rfd8 {[%clk 0:00:03]} 29. Nc5 {[%clk 0:00:16]}  b6 {[%clk 0:00:02]} 30. Ne4+ {[%clk 0:00:16]}  Kg7 {[%clk 0:00:03]} 31. Ng3 {[%clk 0:00:16]}  Kf6 {[%clk 0:00:02]} 32. h3 {[%clk 0:00:16]}  Be6 {[%clk 0:00:02]} 33. Nh5+ {[%clk 0:00:16]}  Kg5 {[%clk 0:00:02]} 34. Ng3 {[%clk 0:00:16]}  Rac8 {[%clk 0:00:02]} 35. Re5+ {[%clk 0:00:16]}  Kf6 {[%clk 0:00:03]} 36. Rae1 {[%clk 0:00:17]}  Kg7 {[%clk 0:00:03]} 37. Nh5+ {[%clk 0:00:17]}  Kf8 {[%clk 0:00:04]} 38. Nf4 {[%clk 0:00:17]}  Bd7 {[%clk 0:00:03]} 39. Rh5 {[%clk 0:00:15]}  Ng8 {[%clk 0:00:04]} 40. Rg5 {[%clk 0:00:12]}  Nf6 {[%clk 0:00:04]} 41. Nd5 {[%clk 0:00:12]}  Nxd5 {[%clk 0:00:03]} 42. Rxd5 {[%clk 0:00:13]}  a5 {[%clk 0:00:03]} 43. Rd1 {[%clk 0:00:12]}  Be6 {[%clk 0:00:04]} 44. Rxd8+ {[%clk 0:00:12]}  Rxd8 {[%clk 0:00:05]} 45. Re1 {[%clk 0:00:13]}  Rc8 {[%clk 0:00:05]} 46. Re5 {[%clk 0:00:13]}  Rd8 {[%clk 0:00:06]} 47. h4 {[%clk 0:00:13]}  Kg7 {[%clk 0:00:05]} 48. f3 {[%clk 0:00:12]}  Kf6 {[%clk 0:00:06]} 49. Re2 {[%clk 0:00:12]}  Rd4 {[%clk 0:00:06]} 50. g3 {[%clk 0:00:12]}  Rd6 {[%clk 0:00:05]} 51. Kf2 {[%clk 0:00:12]}  Rd8 {[%clk 0:00:05]} 52. g4 {[%clk 0:00:13]}  Bd5 {[%clk 0:00:05]} 53. g5+ {[%clk 0:00:12]}  Kg7 {[%clk 0:00:05]} 54. h5 {[%clk 0:00:12]}  Rd7 {[%clk 0:00:04]} 55. h6+ {[%clk 0:00:12]}  Kg8 {[%clk 0:00:05]} 56. Re8# {[%clk 0:00:12]} 1-0


[Site "https://www.chess.com"]

[Event "Titled Tuesday Blitz August 16 Early 2022"]
[White "Vidonyak, Roman"]
[Black "Barria Zuniga, Daniel"]
[WhiteFideId "14100622"]
[BlackFideId "3400816"]
[WhiteElo "2442"]
[BlackElo "2414"]
[Result "0-1"]
[Round "07"]
[TimeControl "180+2"]
[Date "2022.08.18"]
[WhiteClock "0:00:00"]
[BlackClock "0:00:00"]

1. d4 {[%clk 0:00:00]}  g6 {[%clk 0:00:00]} 2. c4 {[%clk 0:00:00]}  Bg7 {[%clk 0:00:00]} 3. e4 {[%clk 0:00:00]}  c5 {[%clk 0:00:00]} 4. d5 {[%clk 0:00:00]}  d6 {[%clk 0:00:00]} 5. h4 {[%clk 0:00:00]}  Nf6 {[%clk 0:00:00]} 6. Nc3 {[%clk 0:00:00]}  e6 {[%clk 0:00:00]} 7. Nf3 {[%clk 0:00:00]}  exd5 {[%clk 0:00:00]} 8. exd5 {[%clk 0:00:00]}  O-O {[%clk 0:00:00]} 9. Be2 {[%clk 0:00:00]}  Bf5 {[%clk 0:00:00]} 10. h5 {[%clk 0:00:00]}  Nxh5 {[%clk 0:00:00]} 11. Ng5 {[%clk 0:00:00]}  Nf6 {[%clk 0:00:00]} 12. g4 {[%clk 0:00:00]}  Bc8 {[%clk 0:00:00]} 13. Nce4 {[%clk 0:00:00]}  Nxe4 {[%clk 0:00:00]} 14. Nxe4 {[%clk 0:00:00]}  f5 {[%clk 0:00:00]} 15. Bg5 {[%clk 0:00:00]}  Qa5+ {[%clk 0:00:00]} 16. Nc3 {[%clk 0:00:00]}  fxg4 {[%clk 0:00:00]} 17. Bd2 {[%clk 0:00:00]}  Nd7 {[%clk 0:00:00]} 18. Ne4 {[%clk 0:00:00]}  Qb6 {[%clk 0:00:00]} 19. Ng5 {[%clk 0:00:00]}  Ne5 {[%clk 0:00:00]} 20. Nxh7 {[%clk 0:00:00]}  Nf3+ {[%clk 0:00:00]} 21. Bxf3 {[%clk 0:00:00]}  Rxf3 {[%clk 0:00:00]} 22. Ng5 {[%clk 0:00:00]}  Rf8 {[%clk 0:00:00]} 23. Rh7 {[%clk 0:00:00]}  Qxb2 {[%clk 0:00:00]} 24. Rb1 {[%clk 0:00:00]}  Qe5+ {[%clk 0:00:00]} 25. Kf1 {[%clk 0:00:00]}  g3 {[%clk 0:00:00]} 26. f3 {[%clk 0:00:00]}  b6 {[%clk 0:00:00]} 27. Kg2 {[%clk 0:00:00]}  Bf5 {[%clk 0:00:00]} 28. Rc1 {[%clk 0:00:00]}  Rae8 {[%clk 0:00:00]} 29. Bc3 {[%clk 0:00:00]}  Qe2+ {[%clk 0:00:00]} 30. Qxe2 {[%clk 0:00:00]}  Rxe2+ {[%clk 0:00:00]} 31. Kxg3 {[%clk 0:00:00]}  Bxc3 {[%clk 0:00:00]} 32. Rxc3 {[%clk 0:00:00]}  Rfe8 {[%clk 0:00:00]} 33. Rxa7 {[%clk 0:00:00]}  R2e7 {[%clk 0:00:00]} 34. Ra6 {[%clk 0:00:00]}  Rb8 {[%clk 0:00:00]} 35. Rb3 {[%clk 0:00:00]}  Reb7 {[%clk 0:00:00]} 36. a4 {[%clk 0:00:00]}  Kf8 {[%clk 0:00:00]} 37. Rb2 {[%clk 0:00:00]}  Ke7 {[%clk 0:00:00]} 38. Kf4 {[%clk 0:00:00]}  Kd7 {[%clk 0:00:00]} 39. Nh7 {[%clk 0:00:00]}  Bd3 {[%clk 0:00:00]} 40. Nf6+ {[%clk 0:00:00]}  Ke7 {[%clk 0:00:00]} 41. Kg5 {[%clk 0:00:00]}  Bxc4 {[%clk 0:00:00]} 42. Rb5 {[%clk 0:00:00]}  Bxb5 {[%clk 0:00:00]} 43. axb5 {[%clk 0:00:00]}  c4 {[%clk 0:00:00]} 44. Ne4 {[%clk 0:00:00]}  Rc7 {[%clk 0:00:00]} 45. Ra3 {[%clk 0:00:00]}  Rf8 {[%clk 0:00:00]} 46. Kg4 {[%clk 0:00:00]}  Rf5 {[%clk 0:00:00]} 47. Nc3 {[%clk 0:00:00]}  Kf6 {[%clk 0:00:00]} 48. Ra8 {[%clk 0:00:00]}  Ke5 {[%clk 0:00:00]} 49. Re8+ {[%clk 0:00:00]}  Kd4 {[%clk 0:00:00]} 50. Ne2+ {[%clk 0:00:00]}  Kxd5 {[%clk 0:00:00]} 51. Nc3+ {[%clk 0:00:00]}  Kd4 {[%clk 0:00:00]} 52. Ne2+ {[%clk 0:00:00]}  Kc5 {[%clk 0:00:00]} 53. Nc3 {[%clk 0:00:00]}  d5 {[%clk 0:00:00]} 54. Ne2 {[%clk 0:00:00]}  Kxb5 {[%clk 0:00:00]} 55. Nd4+ {[%clk 0:00:00]}  Kc5 {[%clk 0:00:00]} 56. Nxf5 {[%clk 0:00:00]}  gxf5+ {[%clk 0:00:00]} 57. Kxf5 {[%clk 0:00:00]}  c3 {[%clk 0:00:00]} 58. Re1 {[%clk 0:00:00]}  Kc4 {[%clk 0:00:00]} 59. Ke5 {[%clk 0:00:00]}  Re7+ {[%clk 0:00:00]} 0-1


[Site "https://www.chess.com"]

[Event "Titled Tuesday Blitz August 16 Early 2022"]
[White "Vovk, Orest"]
[Black "Atakhan, Abtin"]
[WhiteFideId "14113490"]
[BlackFideId "22502203"]
[WhiteElo "2203"]
[BlackElo "2087"]
[Result "1/2-1/2"]
[Round "07"]
[TimeControl "180+1"]
[Date "2022.08.16"]
[WhiteClock "0:00:14"]
[BlackClock "0:00:02"]

1. h4 {[%clk 0:03:00]}  d5 {[%clk 0:02:56]} 2. h5 {[%clk 0:03:00]}  h6 {[%clk 0:02:56]} 3. e4 {[%clk 0:02:58]}  dxe4 {[%clk 0:02:56]} 4. Nc3 {[%clk 0:02:58]}  Nf6 {[%clk 0:02:56]} 5. Qe2 {[%clk 0:02:58]}  Nbd7 {[%clk 0:02:46]} 6. Nxe4 {[%clk 0:02:58]}  Nxe4 {[%clk 0:02:47]} 7. Qxe4 {[%clk 0:02:58]}  Nf6 {[%clk 0:02:48]} 8. Qd3 {[%clk 0:02:57]}  Qxd3 {[%clk 0:02:46]} 9. Bxd3 {[%clk 0:02:57]}  Bg4 {[%clk 0:02:46]} 10. Be2 {[%clk 0:02:57]}  Bf5 {[%clk 0:02:44]} 11. d3 {[%clk 0:02:57]}  e5 {[%clk 0:02:40]} 12. Bd2 {[%clk 0:02:54]}  O-O-O {[%clk 0:02:39]} 13. O-O-O {[%clk 0:02:53]}  Bc5 {[%clk 0:02:39]} 14. Be3 {[%clk 0:02:50]}  Bd4 {[%clk 0:02:35]} 15. Nf3 {[%clk 0:02:39]}  Rhe8 {[%clk 0:02:35]} 16. Rdf1 {[%clk 0:02:21]}  Ng4 {[%clk 0:02:27]} 17. Bxd4 {[%clk 0:02:17]}  exd4 {[%clk 0:02:27]} 18. Kd2 {[%clk 0:02:08]}  Be6 {[%clk 0:02:10]} 19. Nh4 {[%clk 0:01:56]}  Nf6 {[%clk 0:02:09]} 20. Bf3 {[%clk 0:01:53]}  Bd5 {[%clk 0:01:55]} 21. Rh3 {[%clk 0:01:23]}  Re5 {[%clk 0:01:42]} 22. Bd1 {[%clk 0:01:02]}  Bc6 {[%clk 0:01:23]} 23. f4 {[%clk 0:00:54]}  Rb5 {[%clk 0:01:14]} 24. b3 {[%clk 0:00:42]}  Ra5 {[%clk 0:00:45]} 25. a4 {[%clk 0:00:41]}  Bd7 {[%clk 0:00:29]} 26. Rg3 {[%clk 0:00:38]}  Nxh5 {[%clk 0:00:30]} 27. Bxh5 {[%clk 0:00:32]}  Rxh5 {[%clk 0:00:31]} 28. Nf3 {[%clk 0:00:31]}  g6 {[%clk 0:00:25]} 29. Nxd4 {[%clk 0:00:27]}  Bxa4 {[%clk 0:00:25]} 30. Ne6 {[%clk 0:00:19]}  fxe6 {[%clk 0:00:06]} 31. bxa4 {[%clk 0:00:18]}  Rg8 {[%clk 0:00:06]} 32. Re1 {[%clk 0:00:16]}  Kd7 {[%clk 0:00:06]} 33. Rge3 {[%clk 0:00:16]}  Re8 {[%clk 0:00:06]} 34. Rg3 {[%clk 0:00:16]}  Rg8 {[%clk 0:00:04]} 35. Rge3 {[%clk 0:00:16]}  Re8 {[%clk 0:00:03]} 36. Rg3 {[%clk 0:00:14]}  Rg8 {[%clk 0:00:02]} 1/2-1/2


[Site "https://www.chess.com"]

[Event "Titled Tuesday Blitz August 16 Early 2022"]
[White "Vrbljanac, Aleksandar"]
[Black "Gomez Ledo, Roberto Carlos"]
[WhiteFideId "932817"]
[BlackFideId "3507076"]
[WhiteElo "2309"]
[BlackElo "2379"]
[Result "1-0"]
[Round "07"]
[TimeControl "180+1"]
[Date "2022.08.16"]
[WhiteClock "0:00:19"]
[BlackClock "0:00:25"]

1. e4 {[%clk 0:02:34]}  e5 {[%clk 0:02:59]} 2. Nf3 {[%clk 0:02:33]}  Nc6 {[%clk 0:02:59]} 3. Bc4 {[%clk 0:02:32]}  Bc5 {[%clk 0:02:58]} 4. c3 {[%clk 0:02:32]}  Nf6 {[%clk 0:02:57]} 5. d3 {[%clk 0:02:33]}  a6 {[%clk 0:02:56]} 6. Bb3 {[%clk 0:02:32]}  Ba7 {[%clk 0:02:53]} 7. Nbd2 {[%clk 0:02:32]}  d6 {[%clk 0:02:53]} 8. h3 {[%clk 0:02:30]}  O-O {[%clk 0:02:52]} 9. O-O {[%clk 0:02:30]}  Ne7 {[%clk 0:02:48]} 10. d4 {[%clk 0:02:30]}  Ng6 {[%clk 0:02:48]} 11. Re1 {[%clk 0:02:30]}  h6 {[%clk 0:02:47]} 12. Nf1 {[%clk 0:02:30]}  Nh7 {[%clk 0:02:44]} 13. Ng3 {[%clk 0:02:30]}  Qf6 {[%clk 0:02:44]} 14. Be3 {[%clk 0:02:17]}  Ng5 {[%clk 0:02:41]} 15. Nh2 {[%clk 0:02:06]}  Kh7 {[%clk 0:02:11]} 16. Ng4 {[%clk 0:02:04]}  Qe7 {[%clk 0:02:11]} 17. Nf5 {[%clk 0:01:59]}  Qe8 {[%clk 0:01:45]} 18. Nfxh6 {[%clk 0:01:28]}  Nxe4 {[%clk 0:01:34]} 19. f3 {[%clk 0:00:52]}  Nf6 {[%clk 0:01:05]} 20. Nxf6+ {[%clk 0:00:44]}  gxf6 {[%clk 0:01:06]} 21. f4 {[%clk 0:00:30]}  Kxh6 {[%clk 0:00:57]} 22. fxe5+ {[%clk 0:00:30]}  Kg7 {[%clk 0:00:33]} 23. Qh5 {[%clk 0:00:25]}  Rh8 {[%clk 0:00:28]} 24. exf6+ {[%clk 0:00:25]}  Kf8 {[%clk 0:00:25]} 25. Bh6+ {[%clk 0:00:19]} 1-0


[Site "https://www.chess.com"]